Cogmind - Beta 13 @@@ ROGUE MODE // 2024.04.07 @ 21:41:04 Player: Zaz Result: Destroyed by G-73 Enforcer with Phase Gun Performance ------------- Evolutions (9) 4500 Regions Visited (21) 4200 Robots Destroyed (316) 1580 Value Destroyed (12320) 12320 Prototype IDs (53) 1060 Alien Tech Used (0) 0 Bonus (2278) 2278 TOTAL SCORE: 25938 Bonus ------- High Alert Combat Kills 1848 Follower Combat Kills 848 Aligned with FarCom 300 Met Warlord at Base 500 MAIN.C Attacked Warlord 500 Warlord Defense Kills 1038 Friendly Fire -2756 Cogmind --------- Core Integrity 0/1600 Matter 221/300 Energy 92/100 System Corruption 4% Temperature Cool (0) Movement Core (50) Location -1/Access Parts ------- > --- POWER (2) -------- (None) > --- PROPULSION (6) --- (None) > --- UTILITY (13) ----- (None) > --- WEAPON (4) ------- (None) > --- INVENTORY (5) ---- Small Storage Unit Improved Kinecellerator Advanced Drone Bay (2/2) KE Penetrator Peak State ------------ > --- POWER ------------ Light Antimatter Reactor Light Antimatter Reactor > --- PROPULSION ------- Improved Antigrav System Improved Antigrav System Combat Antigrav System Combat Antigrav System Antigrav Array > --- UTILITY ---------- Advanced Heat Sink Advanced Heat Sink Medium Storage Unit Advanced Visual Processing Unit 0b10 Decoder Chip [Generic] Advanced Targeting Computer Armor Integrity Analyzer Recoil Nullifier Advanced Weapon Cycler Advanced Phase Shifter Centrium Light Armor Plating Centrium Light Armor Plating Graphene Brace > --- WEAPON ----------- Enhanced Quantum Rifle KE Penetrator Linear Accelerator Linear Accelerator > --- INVENTORY -------- Improved Linear Gravjet Small Storage Unit Improved Kinecellerator Advanced Drone Bay KE Penetrator Micro-nuke Launcher [Rating: 168] Favorites ----------- Power Improved Ion Engine Engine Improved Ion Engine Power Core Backup Power VII Reactor Light Antimatter Reactor Propulsion Armored Treads Treads Armored Treads Wheel Compact Wheel Hover Unit Improved Antigrav System Flight Unit Cooled Cesium-ion Thruster Utility Advanced Targeting Computer Device Advanced Weapon Cycler Storage Small Storage Unit Processor Advanced Targeting Computer Hackware Hacking Suite Protection Hardened Heavy Armor Plating Weapon Gauss Rifle Energy Gun Medium Laser Ballistic Gun Gauss Rifle Ballistic Cannon Linear Accelerator Launcher Long-range Missile Launcher Special Weapon RU-N14's Throwing Claymores v3 Impact Weapon Maul Piercing Weapon Force Lance Special Melee Weapon Datajack Build | -11 -10 -10 -10 -9 -8 -8 -8 -6 -6 -6 -6 -6 -5 -4 -4 -4 -4 -3 -3 -2 -1 ------- Run | Yrd Mat Min Exi Min Mat Sto Rec Fac Was Fac Low Low Fac Fac Upp Upp War Pro Res Res Acc Slots Evolved 18 | . . . . . 4 . . 4 . . . . 2 2 . . . . 2 2 2 Power 1 | . . . . . . . . . . . . . . 1 . . . . . . . Propulsion 4 | . . . . . 1 . . 1 . . . . 1 . . . . . . . 1 Utility 11 | . . . . . 2 . . 2 . . . . 1 1 . . . . 2 2 1 Weapon 2 | . . . . . 1 . . 1 . . . . . . . . . . . . . Parts Attached 407 | 4 22 1 2 5 55 16 1 44 10 33 13 2 15 16 9 19 27 1 77 15 20 Power 40 | 1 2 . . . 7 . 1 2 . 2 . . . 2 2 2 5 . 10 2 2 Engine 9 | 1 2 . . . 3 . 1 . . 1 . . . . . . 1 . . . . Core 9 | . . . . . 4 . . 2 . 1 . . . 2 . . . . . . . Reactor 22 | . . . . . . . . . . . . . . . 2 2 4 . 10 2 2 Propulsion 82 | 2 5 . . . 12 4 . 11 . 7 1 . 4 3 . 1 7 . 18 4 3 Treads 15 | . . . . . 9 4 . 2 . . . . . . . . . . . . . Leg . | . . . . . . . . . . . . . . . . . . . . . . Wheel 9 | 2 5 . . . 2 . . . . . . . . . . . . . . . . Hover 57 | . . . . . 1 . . 8 . 7 1 . 4 3 . 1 7 . 18 4 3 Flight 1 | . . . . . . . . 1 . . . . . . . . . . . . . Utility 145 | 1 3 . . . 13 . . 21 10 17 6 1 10 3 6 6 7 1 31 3 6 Device 63 | . 2 . . . . . . 8 5 7 4 . 7 1 5 4 1 . 14 3 2 Storage 9 | 1 1 . . . . . . 2 . 2 . . . . . . . . 3 . . Processor 18 | . . . . . 4 . . . . 1 . . . 1 1 . . . 8 . 3 Hackware 1 | . . . . . . . . 1 . . . . . . . . . . . . . Protection 54 | . . . . . 9 . . 10 5 7 2 1 3 1 . 2 6 1 6 . 1 Artifact . | . . . . . . . . . . . . . . . . . . . . . . Weapon 140 | . 12 1 2 5 23 12 . 10 . 7 6 1 1 8 1 10 8 . 18 6 9 Energy Gun 23 | . 8 . . . 2 1 . . . . . . . . . 3 2 . 3 4 . Energy Cannon . | . . . . . . . . . . . . . . . . . . . . . . Ballistic Gun 80 | . 3 . 1 1 17 6 . 8 . 5 3 1 1 4 1 5 5 . 10 1 8 Ballistic Cannon 2 | . . . . . . . . . . . . . . . . . . . 1 1 . Launcher 30 | . 1 1 . 4 4 5 . 2 . 2 3 . . 2 . 2 . . 3 . 1 Special Weapon 2 | . . . . . . . . . . . . . . . . . 1 . 1 . . Impact Weapon 1 | . . . . . . . . . . . . . . 1 . . . . . . . Slashing Weapon . | . . . . . . . . . . . . . . . . . . . . . . Piercing Weapon 1 | . . . . . . . . . . . . . . 1 . . . . . . . Special Melee Weapon 1 | . . . 1 . . . . . . . . . . . . . . . . . . Unidentified Prototypes 13 | . . . . . 5 1 . 2 . . . . . . . . 3 . 2 . . Corrupted Parts 1 | . . . . . . . . . . 1 . . . . . . . . . . . System Corruption 5 | . . . . . . . . . . 5 . . . . . . . . . . . Parts Lost 56 | . 3 . . . 3 . . 1 . 3 2 . . 2 1 2 1 . 21 . 17 Power 8 | . 1 . . . 2 . . . . 1 . . . 1 . . . . . . 3 Propulsion 15 | . 1 . . . . . . . . 2 1 . . . . . 1 . 6 . 4 Utility 20 | . . . . . . . . 1 . . 1 . . 1 1 . . . 8 . 8 Weapon 13 | . 1 . . . 1 . . . . . . . . . . 2 . . 7 . 2 Highest Loss Streak 10 | . 3 . . . 1 . . 1 . 1 2 . . 1 1 1 1 . 9 . 10 To Critical Strikes . | . . . . . . . . . . . . . . . . . . . . . . Average Slot Usage (%) 89 | . 87 100 92 93 89 89 90 90 91 89 86 86 84 88 87 87 91 100 95 87 82 Engine 3 | . 13 14 14 14 4 9 9 2 . . . . . . . . 3 5 . . . Core 2 | . . . . . 4 . . 3 6 5 6 6 5 7 3 . . . . . . Reactor 1 | . . . . . . . . . . . . . . . 1 5 4 5 7 6 6 Treads 8 | . . . . . 17 26 27 13 . . . . . . . . . . . . . Wheel 3 | . 25 28 28 28 8 . . . . . . . . . . . . . . . . Hover 11 | . . . . . . . . 11 26 22 20 20 19 20 21 21 21 26 22 17 17 Device 8 | . 6 14 14 14 2 . . 2 12 12 10 6 14 15 13 13 15 13 14 18 20 Storage 6 | . 14 14 14 14 9 9 9 6 6 6 6 6 5 5 5 5 5 5 4 4 3 Processor 8 | . . . . . 9 9 9 6 6 6 6 6 5 9 10 10 10 10 15 17 13 Protection 10 | . . . . . 8 9 9 19 12 13 15 20 13 10 10 10 9 11 8 8 5 Energy Gun 1 | . 23 . . . . . . . . . . . . . . . 1 . . 4 . Ballistic Gun 19 | . 2 14 14 4 22 26 27 22 20 19 19 20 17 15 18 18 19 21 16 . 8 Naked Turns 31 | . . . . . . . . . . . . . . . . . . . . . 31 Heaviest Build 82 | 10 30 31 36 36 60 61 58 67 34 41 37 37 41 47 52 55 59 49 68 73 82 Greatest Support 83 | 32 32 26 26 26 62 63 63 83 35 40 38 38 49 50 50 52 57 57 63 70 82 Greatest Overweight (x) 21 | . 1 1 1 1 14 . . 21 . 1 . . 1 1 1 1 1 . 1 1 . Average Overweight (x) . | . . 1 . . 2 . . . . . . . . . . . . . . . . Largest Inventory Capacity 15 | 8 15 15 15 15 15 15 15 15 8 10 8 8 8 8 8 8 8 8 10 10 10 Average Capacity 11 | 7 14 15 15 15 15 15 15 12 8 8 8 8 8 8 8 8 8 8 8 10 9 Most Carried 15 | 8 15 15 15 15 15 15 15 15 8 10 8 8 8 7 8 8 8 8 10 10 10 Average Carried 10 | 4 11 15 14 13 14 14 15 11 7 8 7 6 7 6 7 7 7 8 7 9 7 Final Capacity 15 | 8 15 15 15 15 15 15 15 8 8 8 8 8 8 8 8 8 8 8 10 10 5 Final Carried 15 | 8 15 15 14 13 15 15 15 8 8 8 6 8 8 7 7 8 8 8 10 10 5 Class Distribution -------------------- 25% | Scavenger-Skirmisher 20% | Gunner 16% | Scavenger-Gunner 11% | Mutant 11% | Scavenger-Tank 10% | Tank Dominant Class ---------------- Mutant | -10/Materials Mutant | -10/Mines Mutant | -10/Exiles Mutant | -9/Mines Scavenger-Skirmisher | -8/Materials Scavenger-Skirmisher | -8/Storage Scavenger-Skirmisher | -8/Recycling Scavenger-Tank | -6/Factory Gunner | -6/Waste Gunner | -6/Factory Tank | -6/Lower Caves Tank | -6/Lower Caves Mutant | -5/Factory Gunner | -4/Factory Gunner | -4/Upper Caves Gunner | -4/Upper Caves Scavenger-Gunner | -4/Warlord Scavenger-Gunner | -3/Proximity Caves Scavenger-Gunner | -3/Research Scavenger-Gunner | -2/Research Scavenger-Gunner | -1/Access Resources | -11 -10 -10 -10 -9 -8 -8 -8 -6 -6 -6 -6 -6 -5 -4 -4 -4 -4 -3 -3 -2 -1 ----------- Run | Yrd Mat Min Exi Min Mat Sto Rec Fac Was Fac Low Low Fac Fac Upp Upp War Pro Res Res Acc Matter Collected 11466 | 200 249 33 145 110 1475 744 53 1473 437 855 165 28 152 437 386 638 589 10 1918 761 608 Remotely . | . . . . . . . . . . . . . . . . . . . . . . Salvage Created 13959 | . 313 116 134 68 2560 1050 53 1616 . 1209 270 . 210 308 236 899 920 . 2812 411 774 Parts 738 | . 14 16 7 8 136 57 6 82 . 62 12 . 12 26 9 44 59 . 147 14 27 Haulers Intercepted 16 | . 1 . . . 5 6 . 1 . 1 . . . . . . . . 2 . . Recyclers Shooed 18 | . . . . . 4 . 1 4 . 3 . . 1 2 . . . . 2 . 1 Parts Field Recycled . | . . . . . . . . . . . . . . . . . . . . . . Retrieved Matter . | . . . . . . . . . . . . . . . . . . . . . . Parts Self-Destructed 58 | . . . . . . . . . . . 11 . . . 7 40 . . . . . Prevented 3 | . . . . . . . . . . . . . . . 3 . . . . . . Kills | -11 -10 -10 -10 -9 -8 -8 -8 -6 -6 -6 -6 -6 -5 -4 -4 -4 -4 -3 -3 -2 -1 ------- Run | Yrd Mat Min Exi Min Mat Sto Rec Fac Was Fac Low Low Fac Fac Upp Upp War Pro Res Res Acc Combat Hostiles Destroyed 228 | . 7 7 3 6 40 16 1 19 . 21 7 . 4 13 3 15 10 . 46 5 5 Melee 1 | . . . . . . . . . . . . . . 1 . . . . . . . Guns 160 | . 4 . 3 6 31 11 1 15 . 17 4 . 4 4 3 11 10 . 33 . 3 Cannons 7 | . . . . . . . . . . . . . . . . . . . . 5 2 AOE 60 | . 3 7 . . 9 5 . 4 . 4 3 . . 8 . 4 . . 13 . . Classes Destroyed 23 | . 5 2 1 . 7 . . 2 . 2 1 . . . . 1 1 . . . 1 Worker 17 | . . 1 . . 3 2 . 3 . 1 . . . 1 . . . . 3 . 3 Builder 10 | . . 1 . . 2 . . 1 . . . . . 1 . . . . 4 . 1 Tunneler 1 | . . . . . . . . . . 1 . . . . . . . . . . . Hauler 16 | . 1 . . . 5 6 . 1 . 1 . . . . . . . . 2 . . Recycler 13 | . 1 1 . . 3 . . 3 . 1 . . . . . . . . 2 1 1 Mechanic 1 | . . . . . . . . 1 . . . . . . . . . . . . . Operator 4 | . 1 . . . 1 . . 1 . . . . . . . . . . 1 . . Watcher 17 | . . . . . 5 1 . 4 . 2 . . 1 2 . . . . 2 . . Swarmer 63 | . 3 6 . 4 3 2 . 3 . 8 3 . 2 12 . 3 . . 14 . . Cutter 3 | . . . . . . . . . . 1 . . . . . . . . 2 . . Saboteur 3 | . . . . . . . . . . . . . . . . . 3 . . . . Grunt 81 | . 4 1 2 . 23 8 . 6 . 7 1 . . 1 3 7 3 . 11 3 1 Brawler 4 | . . . . . 1 1 . . . . . . . . . . . . 1 1 . Duelist 2 | . . . . . 1 . . . . . . . . . . . . . 1 . . Protector 3 | . . . . . 1 1 . . . . . . . . . . 1 . . . . Sentry 23 | . . . . . 6 3 1 4 . 4 . . . . . 1 . . 1 . 3 Demolisher 3 | . . . 1 2 . . . . . . . . . . . . . . . . . Hunter 12 | . . . . . 4 1 . 1 . . . . . . . 2 . . 3 . 1 Programmer 26 | . . . . . . . . 5 . 1 . . 2 . . 1 3 . 13 1 . Heavy 1 | . . . . . 1 . . . . . . . . . . . . . . . . Wasp 1 | . . . . . . . . . . 1 . . . . . . . . . . . Thug 2 | . . . . . . . . . . 1 . . . . . . 1 . . . . Butcher 2 | . . . . . . . . . . . . . . . . . . . . . 2 Bouncer 2 | . . . . . . . . . . . . . . . . . 2 . . . . Fireman 3 | . . . . . . . . . . . 3 . . . . . . . . . . Mutant 2 | . . . . . . . . . . . . . . . . 1 1 . . . . Sapper 1 | . . . . . . . . . . . . . . . . . 1 . . . . Knight 1 | . . . . . . . . . . . . . . . . . . . . . 1 Best Kill Streak 12 | . 4 4 3 4 7 7 1 4 . 6 3 . 2 12 1 3 7 . 9 4 4 Combat Bots Only 9 | . 3 3 3 4 5 7 1 3 . 6 3 . 2 9 1 3 7 . 7 4 2 Max Kills in Single Turn 6 | . 2 2 1 1 3 3 1 3 . 6 2 . 1 4 1 2 2 . 5 1 2 Gunslinging 2 | . . . . . . . . . . . . . . . . 1 1 . 2 . . Exploded 5 | . 2 2 . . 2 2 . 3 . 4 2 . . 3 . 2 . . 5 . . Melee 1 | . . . . . . . . . . . . . . 1 . . . . . . . Uniques/NPCs Destroyed . | . . . . . . . . . . . . . . . . . . . . . . Combat | -11 -10 -10 -10 -9 -8 -8 -8 -6 -6 -6 -6 -6 -5 -4 -4 -4 -4 -3 -3 -2 -1 -------- Run | Yrd Mat Min Exi Min Mat Sto Rec Fac Was Fac Low Low Fac Fac Upp Upp War Pro Res Res Acc Hostile Shots Fired 1053 | . 23 10 2 7 100 27 2 85 . 33 19 . 15 34 6 62 25 . 329 15 259 Missed 425 | . 4 4 . 3 32 6 . 34 . 13 9 . 4 15 1 19 12 . 141 7 121 Damage Taken 13378 | . 241 104 28 31 1335 389 26 738 . 738 193 . 199 339 111 606 422 . 4054 199 3625 Core 2578 | . 43 31 12 6 153 . . 40 . 72 . . 44 28 22 63 . . 395 63 1606 Absorbed by Shields 17 | . . . . . . . . . . . . . . . . . . . 17 . . Redirected to Shielding 731 | . . . . . 59 . . 283 . 71 69 . 36 27 12 30 25 . 119 . . Regen/Repaired (Parts) 1062 | . . . . . 358 205 . 121 19 8 . . . . . . 243 . 108 . . Core Remaining (%) 83 | 100 . . . 63 . . 72 . . . . 86 95 . . . . 90 69 95 . Volleys Fired 605 | . 46 12 . 3 108 41 2 73 18 51 3 . 12 24 9 27 24 . 104 18 30 Largest 4 | . 2 2 . 2 3 3 3 4 2 4 1 . 2 4 4 4 4 . 4 4 4 Hottest 308 | . 90 50 . 60 91 92 81 106 53 124 43 . 56 136 121 189 131 . 146 308 198 Shots Fired 1740 | . 87 16 9 24 284 118 6 223 37 151 21 . 31 56 24 91 75 . 344 45 98 Gun 1593 | . 85 6 9 18 266 112 6 218 37 147 18 . 31 51 24 84 75 . 330 10 66 Cannon 68 | . . . . . . . . . . . . . . . . . . . 4 35 29 Launcher 77 | . 2 10 . 6 18 6 . 5 . 4 3 . . 5 . 7 . . 8 . 3 Special 2 | . . . . . . . . . . . . . . . . . . . 2 . . Kinetic 1550 | . 14 6 9 18 251 112 6 218 37 147 18 . 31 51 24 81 75 . 320 37 95 Thermal 97 | . 71 . . . 15 . . . . . . . . . . 3 . . . 8 . Explosive 78 | . 2 10 . 6 18 6 . 5 . 4 3 . . 5 . 7 . . 9 . 3 Electromagnetic 1 | . . . . . . . . . . . . . . . . . . . 1 . . Entropic 14 | . . . . . . . . . . . . . . . . . . . 14 . . Robot Hit Streak 25 | . 10 5 4 10 17 13 6 18 25 12 15 . 6 7 10 13 9 . 12 8 23 Robot Miss Streak 6 | . 4 4 1 2 3 4 1 4 2 3 1 . 2 5 2 5 5 . 6 3 4 Penetration Max 3 | . . . . . 1 1 . 1 . 1 . . . . . 1 2 . 3 1 1 Secondary Targets 16 | . . . . . 3 1 . . . . . . . . . 1 2 . 8 . 1 Max Gunslinging Chain 2 | . . . . . 1 1 . . . . . . . . . 1 1 . 2 . 1 Autonomous 195 | . . . 9 18 43 . . 40 1 52 20 . 10 2 . . . . . . . Shots Hit Robots 1073 | . 54 7 10 15 187 70 4 160 33 96 17 . 20 30 17 55 45 . 183 22 48 Core Hits 639 | . 21 16 3 10 116 41 2 70 3 56 15 . 10 27 6 34 31 . 133 14 31 Critical Kills 32 | . . . . . 1 . . 2 . 2 . . . . 2 6 8 . 11 . . Critical Parts Destroyed 37 | . . . . . 1 1 . . . 1 1 . . 2 1 6 5 . 18 . 1 Critical Strikes 75 | . 2 . . . 3 1 . 2 1 3 1 . . 2 3 12 13 . 29 2 1 Burn 3 | . 2 . . . 1 . . . . . . . . . . . . . . . . Destroy 68 | . . . . . 2 1 . 2 1 3 1 . . 2 3 12 13 . 27 . 1 Blast 2 | . . . . . . . . . . . . . . . . . . . . 2 . Detonate 2 | . . . . . . . . . . . . . . . . . . . 2 . . Melee Attacks 12 | . . . 3 . . . . . . . . . . 9 . . . . . . . Impact 3 | . . . . . . . . . . . . . . 3 . . . . . . . Slashing . | . . . . . . . . . . . . . . . . . . . . . . Piercing 6 | . . . . . . . . . . . . . . 6 . . . . . . . Sneak Attacks 3 | . . . 3 . . . . . . . . . . . . . . . . . . Combat Hostiles . | . . . . . . . . . . . . . . . . . . . . . . Follow-up Attacks . | . . . . . . . . . . . . . . . . . . . . . . Damage Inflicted 34934 | . 850 731 184 387 4468 1961 67 3911 699 3571 932 . 520 2113 243 1606 1269 . 8555 816 2051 Guns 23571 | . 614 42 184 350 3515 1299 67 3093 699 2475 729 . 520 500 243 974 1269 . 5417 199 1382 Cannons 1155 | . . . . . . . . . . . . . . . . . . . . 617 538 Explosions 9980 | . 236 689 . 37 939 655 . 809 . 1096 203 . . 1594 . 632 . . 2977 . 113 Melee . | . . . . . . . . . . . . . . . . . . . . . . Ramming 169 | . . . . . 14 7 . 9 . . . . . 19 . . . . 102 . 18 Kinetic 23509 | . 54 42 184 350 3329 1299 67 3093 699 2475 729 . 520 500 243 947 1269 . 5086 703 1920 Thermal 1943 | . 560 . . . 186 . . 381 . . . . . 393 . 27 . . 283 113 . Explosive 8678 | . 236 689 . 37 867 655 . 428 . 1096 203 . . 1201 . 632 . . 2521 . 113 Electromagnetic 245 | . . . . . 72 . . . . . . . . . . . . . 173 . . Impact . | . . . . . . . . . . . . . . . . . . . . . . Slashing 59 | . . . . . . . . . . . . . . . . . . . 59 . . Piercing . | . . . . . . . . . . . . . . . . . . . . . . Entropic 331 | . . . . . . . . . . . . . . . . . . . 331 . . Highest Corruption 12 | . . . . . 3 6 6 1 1 12 12 12 1 . . 1 1 . 6 . 4 Average Corruption 4 | . . . . . 2 4 6 1 1 7 12 12 1 . . 1 1 . 2 . 3 Corruption Purged . | . . . . . . . . . . . . . . . . . . . . . . Corruption Blocked 2 | . . . . . . . . . . . . . . . . . . . . 2 . Effects 164 | . . . . . 9 27 22 4 3 36 22 1 4 . . 5 . . 29 . 2 Message Errors 47 | . . . . . 3 2 10 . . 12 6 . . . . 2 . . 11 . 1 Matter Fused 38 | . . . . . 1 10 5 1 . 6 6 1 2 . . . . . 6 . . Heat Flow Errors 22 | . . . . . 3 3 2 1 2 3 2 . 1 . . 2 . . 3 . . Energy Discharges 15 | . . . . . . 3 2 1 . 5 2 . . . . 1 . . 1 . . Parts Rejected 1 | . . . . . . . . . . . 1 . . . . . . . . . . Parts Fused 4 | . . . . . . 1 . . 1 2 . . . . . . . . . . . Data Loss (minor) 19 | . . . . . 1 2 1 1 . 3 4 . 1 . . . . . 6 . . Data Loss (major) 8 | . . . . . . 5 1 . . 1 . . . . . . . . 1 . . Misfires 5 | . . . . . 1 . . . . 2 1 . . . . . . . 1 . . Alerts 3 | . . . . . . 1 1 . . 1 . . . . . . . . . . . Weapon Failures 2 | . . . . . . . . . . 1 . . . . . . . . . . 1 Overload Shots . | . . . . . . . . . . . . . . . . . . . . . . Overflow Damage 396 | . 1 19 . . . 2 . 31 . 50 . . . 73 . . . . 191 . 29 Projectiles 29 | . . . . . . . . . . . . . . . . . . . 29 . . Explosions 353 | . 1 19 . . . 2 . 31 . 50 . . . 73 . . . . 148 . 29 Melee 14 | . . . . . . . . . . . . . . . . . . . 14 . . Knockbacks 7 | . . . . . . . . . . . . . . . . . . . 1 6 . Impact 1 | . . . . . . . . . . . . . . . . . . . 1 . . Kinetic 5 | . . . . . . . . . . . . . . . . . . . . 5 . Secondary 1 | . . . . . . . . . . . . . . . . . . . . 1 . Self-Inflicted Damage 518 | . . 31 . . 34 47 . 80 . 25 17 . . 9 . 65 . . 115 . 95 Shots 12 | . . 1 . . 1 2 . 1 . 2 1 . . . . 1 . . 2 . 1 Rammed 15 | . . . . . 6 1 . . . . . . . 1 . . . . 3 . 4 Targets Rammed 16 | . . . . . 6 1 . 1 . . . . . 1 . . . . 3 . 4 Kicked . | . . . . . . . . . . . . . . . . . . . . . . Crushed 1 | . . . . . . . . 1 . . . . . . . . . . . . . Highest Temperature 579 | . 234 10 . . 307 313 154 461 138 179 140 . 244 386 152 458 148 136 413 579 222 Average Temperature 96 | . 84 5 . . 75 76 56 78 69 28 72 . 46 151 56 112 50 63 131 202 69 Received Heat Transfer 1688 | . 129 45 . . 387 189 9 138 . 78 45 . 9 9 39 . 21 . 293 36 261 Effects 37 | . . . . . 3 . . 1 . . . . . 8 . 1 . . 14 10 . Shutdowns 12 | . . . . . . . . 1 . . . . . 2 . 1 . . 5 3 . Energy Bleed 5 | . . . . . . . . . . . . . . 2 . . . . 2 1 . Interference 14 | . . . . . 3 . . . . . . . . 3 . . . . 5 3 . Matter Decay 2 | . . . . . . . . . . . . . . 1 . . . . . 1 . Short Circuit 2 | . . . . . . . . . . . . . . . . . . . 2 . . Damage (major) 2 | . . . . . . . . . . . . . . . . . . . . 2 . Siege Activations . | . . . . . . . . . . . . . . . . . . . . . . Robots Corrupted . | . . . . . . . . . . . . . . . . . . . . . . Combat Hostiles . | . . . . . . . . . . . . . . . . . . . . . . Parts Fried . | . . . . . . . . . . . . . . . . . . . . . . Impact Corruptions 1 | . . . . . . . . . . . . . . . . . . . 1 . . Robots Melted . | . . . . . . . . . . . . . . . . . . . . . . Combat Hostiles . | . . . . . . . . . . . . . . . . . . . . . . Parts Melted 4 | . 4 . . . . . . . . . . . . . . . . . . . . Heat Transferred 3098 | . 1695 . . . 518 . . 250 . . . . . 250 . 37 . . 200 148 . Parts Sabotaged . | . . . . . . . . . . . . . . . . . . . . . . Parts Stolen . | . . . . . . . . . . . . . . . . . . . . . . Parts Stripped . | . . . . . . . . . . . . . . . . . . . . . . Power Chain Reactions . | . . . . . . . . . . . . . . . . . . . . . . Alert | -11 -10 -10 -10 -9 -8 -8 -8 -6 -6 -6 -6 -6 -5 -4 -4 -4 -4 -3 -3 -2 -1 ------- Run | Yrd Mat Min Exi Min Mat Sto Rec Fac Was Fac Low Low Fac Fac Upp Upp War Pro Res Res Acc Peak Influence 1226 | . 195 270 . 167 770 877 342 448 152 1206 . . 368 794 . . . . 1226 928 913 Initial 689 | . . 5 . . 65 308 342 . 151 92 . . 336 144 . . . . . 689 438 Average 408 | . 88 127 . 110 425 590 29 208 142 911 . . 294 426 . . . . 402 798 640 Maximum Alert Level 4 | . . 1 . . 3 3 1 2 . 4 . . 1 3 . . . . 4 3 3 Low Security (%) 30 | 100 100 77 . 100 20 . 98 40 100 11 . . 7 42 . . . . 29 . . Level 1 25 | . . 22 . . 20 13 1 48 . . . . 92 6 . . . . 31 . . Level 2 23 | . . . . . 41 72 . 10 . 4 . . . 32 . . . . 16 1 57 Level 3 15 | . . . . . 17 14 . . . 44 . . . 19 . . . . 15 98 42 Level 4 4 | . . . . . . . . . . 39 . . . . . . . . 6 . . Level 5 . | . . . . . . . . . . . . . . . . . . . . . . High Security . | . . . . . . . . . . . . . . . . . . . . . . Max Security . | . . . . . . . . . . . . . . . . . . . . . . Squads Dispatched 60 | . 1 . . . 10 4 . 14 . 8 . . 1 1 . . . . 14 . 7 Investigation 7 | . . . . . 1 . . 3 . 1 . . . . . . . . 2 . . Extermination 14 | . . . . . . . . 6 . 1 . . 1 . . . . . 5 . 1 Reinforcement 26 | . 1 . . . 7 1 . 4 . 4 . . . . . . . . 6 . 3 Assault 9 | . . . . . 2 2 . . . 2 . . . 1 . . . . 1 . 1 Garrison 4 | . . . . . . 1 . 1 . . . . . . . . . . . . 2 Intercept . | . . . . . . . . . . . . . . . . . . . . . . Searches Triggered . | . . . . . . . . . . . . . . . . . . . . . . Construction Impeded 8 | . . . . . 3 . . 1 . 1 . . . . . . . . 2 . 1 Haulers Reinforced 4 | . . . . . . . . 2 . 1 . . . . . . . . 1 . . Active Scanning Responses . | . . . . . . . . . . . . . . . . . . . . . . Cargo Convoy Interrupts . | . . . . . . . . . . . . . . . . . . . . . . Stealth | -11 -10 -10 -10 -9 -8 -8 -8 -6 -6 -6 -6 -6 -5 -4 -4 -4 -4 -3 -3 -2 -1 --------- Run | Yrd Mat Min Exi Min Mat Sto Rec Fac Was Fac Low Low Fac Fac Upp Upp War Pro Res Res Acc Distress Signals 24 | . 1 . . . 8 2 . 2 . 1 . . 1 . . . 1 . 2 4 2 Communications Jammed . | . . . . . . . . . . . . . . . . . . . . . . Distress Signals . | . . . . . . . . . . . . . . . . . . . . . . Times Spotted 424 | . 15 5 1 4 51 31 2 26 1 32 12 . 11 24 7 16 41 . 75 14 56 Peak Tracking Total 21 | . 3 2 2 3 6 7 1 4 1 5 5 . 7 8 3 4 8 . 12 6 21 Tactical Retreats 36 | . . . . . 1 . . 2 . 4 3 . 1 2 2 2 3 . 7 1 8 Traps | -11 -10 -10 -10 -9 -8 -8 -8 -6 -6 -6 -6 -6 -5 -4 -4 -4 -4 -3 -3 -2 -1 ------- Run | Yrd Mat Min Exi Min Mat Sto Rec Fac Was Fac Low Low Fac Fac Upp Upp War Pro Res Res Acc Traps Triggered 23 | . 3 . . . 4 2 . 2 . 5 . . . 2 . . . . 4 . 1 Indirectly 2 | . . . . . . . . . . . . . . . . . . . 2 . . Trap Hack Attempts . | . . . . . . . . . . . . . . . . . . . . . . Triggered . | . . . . . . . . . . . . . . . . . . . . . . Disarmed . | . . . . . . . . . . . . . . . . . . . . . . Reprogrammed . | . . . . . . . . . . . . . . . . . . . . . . Reused . | . . . . . . . . . . . . . . . . . . . . . . Traps Extracted . | . . . . . . . . . . . . . . . . . . . . . . Installed . | . . . . . . . . . . . . . . . . . . . . . . Triggered 17 | . . . . . . . . . . . 1 . . . 3 1 12 . . . . Machines | -11 -10 -10 -10 -9 -8 -8 -8 -6 -6 -6 -6 -6 -5 -4 -4 -4 -4 -3 -3 -2 -1 ---------- Run | Yrd Mat Min Exi Min Mat Sto Rec Fac Was Fac Low Low Fac Fac Upp Upp War Pro Res Res Acc Machines Disabled 50 | . . . . . 9 6 . 4 . 11 . . 4 7 . 2 . . 4 2 1 Max in Single Turn 4 | . . . . . 2 1 . 3 . 4 . . 1 2 . 2 . . 1 1 1 Garrison Access 3 | . . . . . 1 1 . . . . . . . 1 . . . . . . . Machines Repaired . | . . . . . . . . . . . . . . . . . . . . . . Machines Dismantled . | . . . . . . . . . . . . . . . . . . . . . . Machines Sabotaged . | . . . . . . . . . . . . . . . . . . . . . . Overloaded Fab Kills . | . . . . . . . . . . . . . . . . . . . . . . Hacking | -11 -10 -10 -10 -9 -8 -8 -8 -6 -6 -6 -6 -6 -5 -4 -4 -4 -4 -3 -3 -2 -1 --------- Run | Yrd Mat Min Exi Min Mat Sto Rec Fac Was Fac Low Low Fac Fac Upp Upp War Pro Res Res Acc Machines Accessed 74 | . 1 . 2 . 13 4 12 7 . 9 1 . 2 3 . . 6 . 11 . 3 Terminals 35 | . 1 . . . 8 2 4 3 . 6 . . 1 1 . . . . 7 . 2 Fabricators 2 | . . . . . . . . 1 . 1 . . . . . . . . . . . Repair Stations 9 | . . . . . 2 1 . 1 . 2 . . 1 . . . . . 2 . . Recycling Units 11 | . . . . . 1 . 8 1 . . . . . 1 . . . . . . . Scanalyzers 3 | . . . . . 1 . . 1 . . . . . . . . . . 1 . . Garrison Access 5 | . . . . . 1 1 . . . . . . . 1 . . . . 1 . 1 Total Hacks 180 | . 2 . 5 . 47 13 15 17 . 22 1 . 5 5 . . 13 . 30 . 5 Successful 102 | . 1 . 5 . 28 8 12 6 . 9 1 . 1 3 . . 13 . 14 . 1 Failed 78 | . 1 . . . 19 5 3 11 . 13 . . 4 2 . . . . 16 . 4 Catastrophic 19 | . . . . . 4 . 1 4 . 4 . . . . . . . . 5 . 1 Database Lockouts . | . . . . . . . . . . . . . . . . . . . . . . Manual 29 | . . . 1 . 9 4 3 5 . 3 . . 1 . . . 3 . . . . Terminals 83 | . 2 . . . 24 9 7 6 . 14 . . 3 1 . . . . 13 . 4 Fabricators 6 | . . . . . . . . 3 . 3 . . . . . . . . . . . Repair Stations 27 | . . . . . 6 3 . 5 . 5 . . 2 . . . . . 6 . . Recycling Units 13 | . . . . . 1 . 8 2 . . . . . 2 . . . . . . . Scanalyzers 24 | . . . . . 15 . . 1 . . . . . . . . . . 8 . . Garrison Access 8 | . . . . . 1 1 . . . . . . . 2 . . . . 3 . 1 Terminal Hacks 52 | . 1 . 5 . 8 5 4 1 . 6 1 . 1 1 . . 13 . 5 . 1 Record 17 | . . . 4 . . . . 1 . 1 . . 1 . . . 7 . 2 . 1 Part Schematic 3 | . . . . . . 2 . . . 1 . . . . . . . . . . . Prototype ID Bank 5 | . . . . . 1 . . . . . . . . . . . 4 . . . . Open Door 3 | . . . . . . . . . . . 1 . . . . . 2 . . . . Open DSF 4 | . . . . . . . . . . 1 . . . 1 . . . . 2 . . Emergency Access Points 1 | . . . . . 1 . . . . . . . . . . . . . . . . Alert Level 8 | . 1 . . . 2 1 1 . . 2 . . . . . . . . 1 . . Unreport Threat 4 | . . . . . 1 . 2 . . 1 . . . . . . . . . . . Locate Traps 1 | . . . . . . 1 . . . . . . . . . . . . . . . Dispatch Records 1 | . . . . . 1 . . . . . . . . . . . . . . . . Hauler Manifests 2 | . . . . . 1 1 . . . . . . . . . . . . . . . Zone Layout 2 | . . . . . 1 . 1 . . . . . . . . . . . . . . Derelict Proto ID Bank 1 | . . . 1 . . . . . . . . . . . . . . . . . . Fabricator Hacks 3 | . . . . . . . . 2 . 1 . . . . . . . . . . . Load Schematic 2 | . . . . . . . . 1 . 1 . . . . . . . . . . . Build 1 | . . . . . . . . 1 . . . . . . . . . . . . . Repair Station Hacks 12 | . . . . . 5 2 . 1 . 2 . . . . . . . . 2 . . Scan Component 7 | . . . . . 3 1 . 1 . 1 . . . . . . . . 1 . . Repair 4 | . . . . . 2 1 . . . . . . . . . . . . 1 . . Refit 1 | . . . . . . . . . . 1 . . . . . . . . . . . Recycling Unit Hacks 9 | . . . . . . . 8 . . . . . . 1 . . . . . . . Report Inventory 8 | . . . . . . . 8 . . . . . . . . . . . . . . Retrieve Matter 1 | . . . . . . . . . . . . . . 1 . . . . . . . Scanalyzer 20 | . . . . . 13 . . . . . . . . . . . . . 7 . . Insert Component 11 | . . . . . 7 . . . . . . . . . . . . . 4 . . Analyze 9 | . . . . . 6 . . . . . . . . . . . . . 3 . . Garrison Access Hacks 3 | . . . . . 1 1 . . . . . . . 1 . . . . . . . Seal Access 3 | . . . . . 1 1 . . . . . . . 1 . . . . . . . Unauthorized Hacks 3 | . . . . . 1 . . 2 . . . . . . . . . . . . . Terminals . | . . . . . . . . . . . . . . . . . . . . . . Fabricators . | . . . . . . . . . . . . . . . . . . . . . . Repair Stations . | . . . . . . . . . . . . . . . . . . . . . . Recycling Units 2 | . . . . . 1 . . 1 . . . . . . . . . . . . . Monitor 1 | . . . . . 1 . . . . . . . . . . . . . . . . Reject 1 | . . . . . . . . 1 . . . . . . . . . . . . . Scanalyzers 1 | . . . . . . . . 1 . . . . . . . . . . . . . Extract 1 | . . . . . . . . 1 . . . . . . . . . . . . . Garrison Access . | . . . . . . . . . . . . . . . . . . . . . . Data Cores Recovered 3 | . . . . . . . . 1 . 1 . . . . . . . . 1 . . Used 1 | . . . . . . . . . . 1 . . . . . . . . . . . Hacking Detections 48 | . 1 . . . 11 3 3 6 . 8 . . 2 2 . . . . 9 . 3 Full Trace Events 6 | . . . . . 1 . . 2 . 1 . . . . . . . . 2 . . Feedback Events . | . . . . . . . . . . . . . . . . . . . . . . Feedback Blocked . | . . . . . . . . . . . . . . . . . . . . . . Robot Schematics Acquired . | . . . . . . . . . . . . . . . . . . . . . . Robots Built . | . . . . . . . . . . . . . . . . . . . . . . Authchips . | . . . . . . . . . . . . . . . . . . . . . . Time . | . . . . . . . . . . . . . . . . . . . . . . Total Robot Build Rating . | . . . . . . . . . . . . . . . . . . . . . . Part Schematics Acquired 17 | . . . . . 6 2 . 5 . 1 . . . . . . . . 3 . . Parts Built 2 | . . . . . . . . 2 . . . . . . . . . . . . . Authchips . | . . . . . . . . . . . . . . . . . . . . . . Time 73 | . . . . . . . . 73 . . . . . . . . . . . . . Total Part Build Rating 6 | . . . . . . . . 6 . . . . . . . . . . . . . Parts Repaired 4 | . . . . . 2 1 . . . . . . . . . . . . 1 . . Time 135 | . . . . . 88 19 . . . . . . . . . . . . 28 . . Parts Recycled . | . . . . . . . . . . . . . . . . . . . . . . Recycled Matter . | . . . . . . . . . . . . . . . . . . . . . . Retrieved Matter . | . . . . . . . . . . . . . . . . . . . . . . Retrieved Components . | . . . . . . . . . . . . . . . . . . . . . . Parts Scanalyzed 11 | . . . . . 7 . . . . . . . . . . . . . 4 . . Part Schematics Acquired 9 | . . . . . 6 . . . . . . . . . . . . . 3 . . Parts Damaged . | . . . . . . . . . . . . . . . . . . . . . . Bothacking | -11 -10 -10 -10 -9 -8 -8 -8 -6 -6 -6 -6 -6 -5 -4 -4 -4 -4 -3 -3 -2 -1 ------------ Run | Yrd Mat Min Exi Min Mat Sto Rec Fac Was Fac Low Low Fac Fac Upp Upp War Pro Res Res Acc Used RIF Installer . | . . . . . . . . . . . . . . . . . . . . . . Robots Hacked 3 | . . . 3 . . . . . . . . . . . . . . . . . . Non-combat 2 | . . . 2 . . . . . . . . . . . . . . . . . . Combat 1 | . . . 1 . . . . . . . . . . . . . . . . . . Robot Hacks Applied 3 | . . . 3 . . . . . . . . . . . . . . . . . . parse_system 3 | . . . 3 . . . . . . . . . . . . . . . . . . Relay Couplers Released . | . . . . . . . . . . . . . . . . . . . . . . Fabnet Peak Effective % . | . . . . . . . . . . . . . . . . . . . . . . Robots Rewired . | . . . . . . . . . . . . . . . . . . . . . . Allies Hacked . | . . . . . . . . . . . . . . . . . . . . . . Hacks Repelled . | . . . . . . . . . . . . . . . . . . . . . . Allies | -11 -10 -10 -10 -9 -8 -8 -8 -6 -6 -6 -6 -6 -5 -4 -4 -4 -4 -3 -3 -2 -1 -------- Run | Yrd Mat Min Exi Min Mat Sto Rec Fac Was Fac Low Low Fac Fac Upp Upp War Pro Res Res Acc Total Allies 22 | . . 1 . . . 1 . . 20 . . . . . . . . . . . . Largest Group 20 | . . 1 1 . . 1 1 . 20 14 . . . . . . . . . . . Highest-Rated Group 693 | . . 31 31 . . 100 95 . 693 463 . . . . . . . . . . . Highest-Rated Ally 100 | . . 31 31 . . 100 95 . 50 50 . . . . . . . . . . . Total Orders 15 | . . . . . . . . 2 . . . . 3 . 10 . . . . . . EXPLORE 10 | . . . . . . . . 2 . . . . 1 . 7 . . . . . . RETURN 5 | . . . . . . . . . . . . . 2 . 3 . . . . . . Ally Attacks 146 | . . 6 . . . 37 1 . 28 74 . . . . . . . . . . . Total Damage 4281 | . . 63 . . . 1621 40 . 594 1963 . . . . . . . . . . . Kills 35 | . . 1 . . . 16 . . 1 17 . . . . . . . . . . . Allies Corrupted 1 | . . . . . . . . . . 1 . . . . . . . . . . . Allies Melted . | . . . . . . . . . . . . . . . . . . . . . . Intel | -11 -10 -10 -10 -9 -8 -8 -8 -6 -6 -6 -6 -6 -5 -4 -4 -4 -4 -3 -3 -2 -1 ------- Run | Yrd Mat Min Exi Min Mat Sto Rec Fac Was Fac Low Low Fac Fac Upp Upp War Pro Res Res Acc Robot Analysis Total . | . . . . . . . . . . . . . . . . . . . . . . Derelict Logs Recovered 5 | . . . . . . . . . . . 2 1 . . 1 1 . . . . . Drone Launches 10 | . . . . . . . . 2 . . . . 2 . 6 . . . . . . Drone Recoveries 6 | . . . . . . . . . . . . . 2 . 4 . . . . . . Decoded 0b10 Intel 81 | . . . . . . . . . . . . . . . . . . . 59 10 12 Traps 4 | . . . . . . . . . . . . . . . . . . . 4 . . Emergency Access 9 | . . . . . . . . . . . . . . . . . . . 9 . . Items 53 | . . . . . . . . . . . . . . . . . . . 37 9 7 Machines 4 | . . . . . . . . . . . . . . . . . . . 3 . 1 Patrols 7 | . . . . . . . . . . . . . . . . . . . 5 1 1 Guards 3 | . . . . . . . . . . . . . . . . . . . 1 . 2 Exits 1 | . . . . . . . . . . . . . . . . . . . . . 1 Exploration | -11 -10 -10 -10 -9 -8 -8 -8 -6 -6 -6 -6 -6 -5 -4 -4 -4 -4 -3 -3 -2 -1 ------------- Run | Yrd Mat Min Exi Min Mat Sto Rec Fac Was Fac Low Low Fac Fac Upp Upp War Pro Res Res Acc Turns Passed 19562 | 61 526 159 357 128 3227 1817 896 3024 172 1447 495 26 1030 525 818 886 883 108 2110 428 439 Spaces Moved 16798 | 49 330 124 275 90 1674 932 523 2174 292 1755 913 43 712 612 566 1253 1208 238 1955 528 552 Core 52 | 2 . . . . 2 . . 1 . . . . . . . . . . . . 47 Treads 2507 | . . . . . 369 932 523 683 . . . . . . . . . . . . . Legs . | . . . . . . . . . . . . . . . . . . . . . . Wheels 2169 | 47 330 124 275 90 1303 . . . . . . . . . . . . . . . . Hover 12070 | . . . . . . . . 1490 292 1755 913 43 712 612 566 1253 1208 238 1955 528 505 Flight . | . . . . . . . . . . . . . . . . . . . . . . Fastest Speed 38 | 50 90 105 90 90 105 158 166 38 38 38 45 48 40 43 43 43 43 44 44 50 49 Average Speed 77 | 97 103 105 104 104 151 164 166 88 38 46 45 48 47 43 47 48 52 44 51 62 50 Slowest Speed 1100 | 100 115 105 105 105 750 166 166 1100 38 102 48 48 104 108 105 105 108 44 108 113 59 Overloaded Moves . | . . . . . . . . . . . . . . . . . . . . . . Propulsion Burnouts . | . . . . . . . . . . . . . . . . . . . . . . Robots Hopped . | . . . . . . . . . . . . . . . . . . . . . . Cave-ins Triggered . | . . . . . . . . . . . . . . . . . . . . . . Exploration Rate (%) 53 | 4 42 33 61 20 97 95 95 47 95 33 90 11 22 12 93 89 97 54 58 19 20 Regions Visited 21 Branch Regions 11 Pre-discovered Areas 2 | . . . 1 . . . . . . . . . . . . 1 . . . . . Known Exits Taken 3 | . . . . . 1 . . . . . . 1 . . 1 . . . . . . Unknown Exits Taken 16 | 1 1 1 1 1 . 1 1 . . 1 1 . 1 1 . 1 1 1 1 1 . Scrap Searched 7 | . . . . . . . . . . . 2 1 . . . 2 . 2 . . . Spaces Dug 70 | . . . . . 21 8 . . . 1 . . . 1 . 21 . . 10 1 7 Terrain Destroyed 894 | . 8 74 1 33 127 65 . 101 . 89 38 . 2 53 . 106 4 . 143 12 38 Melee 1 | . . . . . . . . . . . . . . 1 . . . . . . . Projectile 132 | . . . 1 10 22 3 . 6 . 14 2 . 2 1 . 5 4 . 38 12 12 AOE 758 | . 8 74 . 23 105 62 . 95 . 74 36 . . 50 . 101 . . 104 . 26 Terrain Rammed . | . . . . . . . . . . . . . . . . . . . . . . Walls Destroyed . | . . . . . . . . . . . . . . . . . . . . . . Machines Disabled . | . . . . . . . . . . . . . . . . . . . . . . Actions | -11 -10 -10 -10 -9 -8 -8 -8 -6 -6 -6 -6 -6 -5 -4 -4 -4 -4 -3 -3 -2 -1 --------- Run | Yrd Mat Min Exi Min Mat Sto Rec Fac Was Fac Low Low Fac Fac Upp Upp War Pro Res Res Acc Total 22490 | 60 427 136 344 120 2197 1140 548 3189 335 2326 984 48 1381 822 1103 1484 1429 241 2907 603 666 Wait 4218 | . 12 . 52 14 282 142 22 831 5 435 54 . 634 143 515 173 132 . 696 23 53 Move 16778 | 48 329 123 274 89 1673 931 522 2174 291 1754 912 42 711 611 565 1252 1207 237 1954 527 552 Hop . | . . . . . . . . . . . . . . . . . . . . . . Pick Up 138 | 8 11 . 5 2 23 2 . 24 1 14 . 2 2 2 1 4 11 1 15 7 3 Fast Attach 149 | 4 15 . 1 1 26 6 . 12 8 6 1 . 6 6 1 5 10 1 28 5 7 Attach 80 | . 3 . . 4 5 . . 15 . 5 5 1 1 2 2 2 2 . 23 2 8 Detach 42 | . 1 . . 3 5 . . 4 1 1 2 2 . . 2 3 2 . 13 1 2 Swap 178 | . 4 1 1 . 24 10 1 17 2 22 7 1 8 8 6 12 15 . 26 8 5 Drop 237 | . 6 . 8 4 45 7 1 38 9 25 . . 7 3 2 6 26 2 34 12 2 Fire 605 | . 46 12 . 3 108 41 2 73 18 51 3 . 12 24 9 27 24 . 104 18 30 Melee 12 | . . . 3 . . . . . . . . . . 9 . . . . . . . Ram 9 | . . . . . 1 . . . . . . . . 1 . . . . 3 . 4 Kick . | . . . . . . . . . . . . . . . . . . . . . . Crush 7 | . . . . . 5 1 . 1 . . . . . . . . . . . . . Escape Stasis 37 | . . . . . . . . . . 13 . . . 13 . . . . 11 . . Rewire . | . . . . . . . . . . . . . . . . . . . . . . Trap . | . . . . . . . . . . . . . . . . . . . . . . Miscellaneous . | . . . . . . . . . . . . . . . . . . . . . . Route ------- -11/Scrapyard -10/Materials (discovered 2 exits: [*Mat] / [*Min]) -10/Mines (discovered 2 exits: [*Mat] / *Exi) -10/Exiles -9/Mines -8/Materials (discovered 5 exits: [*Fac x3] / *Sto x2) -8/Storage (discovered 2 exits: [*Fac] / *Rec) -8/Recycling -6/Factory (discovered 4 exits: *Fac x3 / *Low) -6/Waste -6/Factory (discovered 3 exits: *Fac / *Low x2) -6/Lower Caves -6/Lower Caves -5/Factory (discovered 3 exits: *Fac / *Upp x2) -4/Factory -4/Upper Caves -4/Upper Caves -4/Warlord -3/Proximity Caves -3/Research -2/Research (discovered 2 exits: *Acc / [*Qua]) -1/Access (discovered 1 exit: Sur) History --------- Turn | Location | Event 19 | -11/Scrapyard | Discovered new exit (range 15) 62 | -11/Scrapyard | Entered Materials 217 | -10/Materials | Discovered new exit (range 9) 311 | -10/Materials | Build established: Mutant 368 | -10/Materials | Lost 3 parts (1p1n1w) 546 | -10/Materials | Discovered new exit (range 8) 588 | -10/Materials | Entered Mines 591 | -10/Mines | Received a Mining Laser from a helpful Derelict 602 | -10/Mines | Discovered new exit (range 10) 743 | -10/Mines | Deemed a non-threat by the Exiles lab entrance 743 | -10/Mines | Discovered new exit (range 5) 747 | -10/Mines | Entered Exiles 747 | -10/Exiles | Accompanied by 1 ally 775 | -10/Exiles | Met 8R-AWN 796 | -10/Exiles | Met EX-HEX 827 | -10/Exiles | Met EX-BIN 841 | -10/Exiles | Aligned with FarCom system 842 | -10/Exiles | Given EX-Vault access code 868 | -10/Exiles | Opened EX-Vault 878 | -10/Exiles | Found AWS/Gauss 902 | -10/Exiles | Warned to stay clear of 0b10 Research branches 913 | -10/Exiles | Exiles lab attacked by MAIN.C 951 | -10/Exiles | Learned location of Zion (-6) 1093 | -10/Exiles | Discovered new exit (range 12) 1104 | -10/Exiles | Left Exiles lab with AWS/Gauss 1104 | -10/Exiles | Entered Mines 1110 | -9/Mines | Met a Derelict bent on vengeance 1133 | -9/Mines | Assembled infested the area 1224 | -9/Mines | Discovered new exit (range 8) 1232 | -9/Mines | Entered Materials 1232 | -8/Materials | Evolved 4 slots: Propulsion x1, Utility x2, Weapon x1 1524 | -8/Materials | Build established: Skirmisher 1894 | -8/Materials | Build established: Scavenger-Skirmisher 2001 | -8/Materials | Discovered new exit (range 13) 2030 | -8/Materials | Identified exit to Storage 2748 | -8/Materials | Discovered new exit (range 16) 2832 | -8/Materials | First assault squad dispatched 3011 | -8/Materials | Discovered exit to Storage (range 10) 3024 | -8/Materials | Discovered new exit (range 10) 3372 | -8/Materials | Repaired Hrd. Heavy Armor Plating 3521 | -8/Materials | Discovered new exit (range 16) 3975 | -8/Materials | Repaired Gauss Rifle 4459 | -8/Materials | Entered Storage 4709 | -8/Storage | Met 01-MTF 4798 | -8/Storage | Repaired Arm. Treads 4871 | -8/Storage | Discovered new exit (range 16) 4912 | -8/Storage | Garrison activated, responded to threat 5530 | -8/Storage | Discovered new exit (range 5) 6059 | -8/Storage | First assault squad dispatched 6129 | -8/Storage | Destroyed 7 combat bots 6276 | -8/Storage | Entered Recycling 6276 | -8/Recycling | Accompanied by 1 ally (01-MTF) 6277 | -8/Recycling | Joined Warlord attack on 0b10 via Recycling 6281 | -8/Recycling | 01-MTF left 6744 | -8/Recycling | Discovered new exit (range 13) 7172 | -8/Recycling | Entered Factory 7172 | -6/Factory | Evolved 4 slots: Propulsion x1, Utility x2, Weapon x1 7476 | -6/Factory | Build established: Scavenger-Tank 7853 | -6/Factory | Discovered new exit (range 10) 7935 | -6/Factory | Discovered new exit (range 15) 9185 | -6/Factory | Build established: Tank 9446 | -6/Factory | Garrison activated, responded to threat 9572 | -6/Factory | Discovered new exit (range 6) 9737 | -6/Factory | Discovered new exit (range 15) 10139 | -6/Factory | Fabricated Imp. Weapon Shielding? 10196 | -6/Factory | Sucked down chute 10196 | -6/Factory | Entered Waste 10197 | -6/Waste | Joined by Warlord forces that had cleared the area 10290 | -6/Waste | A Compactor rumbled back to life 10290 | -6/Waste | Spotted C-40 Crusher 10297 | -6/Waste | Allies destroyed C-40 Crusher 10347 | -6/Waste | Discovered new exit (range 13) 10358 | -6/Waste | Found Damper Plating 10368 | -6/Waste | Entered Factory 10368 | -6/Factory | Accompanied by 14 allies 10463 | -6/Factory | Lost 5 allies 10566 | -6/Factory | Discovered new exit (range 13) 10599 | -6/Factory | Build established: Gunner 10723 | -6/Factory | Discovered new exit (range 6) 10760 | -6/Factory | Identified exit to Factory 10797 | -6/Factory | Discovered new exit (range 16) 11418 | -6/Factory | First assault squad dispatched 11483 | -6/Factory | System corruption reached 10% 11815 | -6/Factory | Entered Lower Caves 11831 | -6/Lower Caves | Learned Factory security intel 12000 | -6/Lower Caves | Acquired the password to a Derelict Tinkerer's latest research 12254 | -6/Lower Caves | Encountered a Warlord checkpoint 12269 | -6/Lower Caves | Learned location of 1 exit from Factory 12274 | -6/Lower Caves | Discovered new exit (range 11) 12310 | -6/Lower Caves | Entered another Lower Caves area 12336 | -6/Lower Caves | Entered Factory 12336 | -5/Factory | Evolved 2 slots: Propulsion x1, Utility x1 12337 | -5/Factory | Identified exit to Upper Caves 12534 | -5/Factory | Discovered exit to Upper Caves (range 10) 13332 | -5/Factory | Discovered new exit (range 16) 13366 | -5/Factory | Entered another Factory area 13366 | -4/Factory | Evolved 2 slots: Power x1, Utility x1 13442 | -4/Factory | Build established: Mutant 13648 | -4/Factory | Destroyed 9 combat bots 13706 | -4/Factory | Discovered new exit (range 21) 13866 | -4/Factory | First assault squad dispatched 13879 | -4/Factory | Build established: Gunner 13891 | -4/Factory | Entered Upper Caves 14050 | -4/Upper Caves | Identified exit to Upper Caves 14062 | -4/Upper Caves | Encountered a Warlord checkpoint 14709 | -4/Upper Caves | Entered another Upper Caves area 14728 | -4/Upper Caves | Learned location of Quarantine (-2) 15031 | -4/Upper Caves | Attacked by a delusional Derelict stockpiling parts 15147 | -4/Upper Caves | Discovered new exit (range 12) 15162 | -4/Upper Caves | Ambushed by research squad 15367 | -4/Upper Caves | Attracted the attention of an 0b10 checkpoint 15595 | -4/Upper Caves | Entered Warlord 15611 | -4/Warlord | Discovered new exit (range 14) 15667 | -4/Warlord | System corruption cleaned by Quarantine Array 15908 | -4/Warlord | Opened side exit 15977 | -4/Warlord | Met Warlord 16002 | -4/Warlord | Warlord's base attacked by MAIN.C 16035 | -4/Warlord | Found Prototype Special Weapon 16035 | -4/Warlord | Identified RU-N14's Throwing Claymores v3 16041 | -4/Warlord | Found RU-N14's Throwing Claymores v3 16058 | -4/Warlord | Found Prototype Energy Gun 16058 | -4/Warlord | Identified Vortex Rail 16062 | -4/Warlord | Found Vortex Rail 16310 | -4/Warlord | Build established: Scavenger-Gunner 16339 | -4/Warlord | Spotted Striker 16352 | -4/Warlord | Warlord forces counterattacked 16373 | -4/Warlord | Destroyed 7 combat bots 16393 | -4/Warlord | Lost 6 allies 16439 | -4/Warlord | Spotted Executioner 16442 | -4/Warlord | Spotted Striker 16478 | -4/Warlord | Entered Proximity Caves 16496 | -3/Proximity Caves | Lost 7 allies 16581 | -3/Proximity Caves | Discovered new exit (range 11) 16586 | -3/Proximity Caves | Entered Research 16586 | -3/Research | Evolved 2 slots: Utility x2 16693 | -3/Research | Repaired KE Penetrator 17245 | -3/Research | Found Prototype Processor 17245 | -3/Research | Identified Spectral Analyzer 17736 | -3/Research | Destroyed 7 combat bots 17744 | -3/Research | Lost 4 parts (2n1u1w) 18269 | -3/Research | Found Prototype Device 18269 | -3/Research | Identified Exp. EM Disruption Field 18348 | -3/Research | Found Unknown Launcher 18348 | -3/Research | Identified Gamma Bomb Array 18367 | -3/Research | First assault squad dispatched 18433 | -3/Research | Spotted B-86 Titan 18543 | -3/Research | Destroyed 7 combat bots 18558 | -3/Research | Lost 9 parts (2n3u4w) 18681 | -3/Research | Discovered new exit (range 20) 18696 | -3/Research | Entered another Research area 18696 | -2/Research | Warlord forces began assault on 0b10 18696 | -2/Research | Evolved 2 slots: Utility x2 18725 | -2/Research | Spotted B-90 Cyclops 18776 | -2/Research | Discovered new exit (range 19) 18798 | -2/Research | Build established: Scavenger-Mutant 18806 | -2/Research | Research machine network offline 18895 | -2/Research | P-80 Master assimilated allied WS-KUJ(l) 18902 | -2/Research | P-80 Master assimilated allied QS-C14(l) 18942 | -2/Research | Lost 4 allies 19060 | -2/Research | Discovered new exit (range 5) 19101 | -2/Research | Spotted Striker 19124 | -2/Research | Entered Access 19124 | -1/Access | Evolved 2 slots: Propulsion x1, Utility x1 19141 | -1/Access | Build established: Scavenger-Gunner 19142 | -1/Access | Lost 3 allies 19184 | -1/Access | Destroyed QG-I81(K) 19259 | -1/Access | Lost 6 allies 19387 | -1/Access | Garrison activated, responded to threat 19422 | -1/Access | First assault squad dispatched 19493 | -1/Access | Lost 4 parts (1p1u2w) 19514 | -1/Access | Identified exit to Surface 19529 | -1/Access | Released all parts (15) 19547 | -1/Access | Core integrity fell below 50% 19556 | -1/Access | Lost 10 parts (2p3n5u) 19559 | -1/Access | Core integrity fell below 20% 19563 | -1/Access | Destroyed by G-73 Enforcer with Phase Gun Last Messages --------------- 19552_ S-43 Plague misfires. 19553_ Penetrated by Slug. 19553_ W-44 Eye sends out distress signal. 19555_ ALERT: Security rotation in progress. 19555_ C-30 ARC bursts open, deploying its payload. 19555_ G-73 Enforcer unfolds itself. 19555_ M-36 Artificer unfolds itself. 19555_ Slug penetrates Wall. 19556_ K-01 Serf collects debris. 19557_ RV QS0UJP:BEDYX%LTG:WT&A4REHKZR1 [Achievement: Hunted] 19559_ Penetrated by Slug. 19559_ Slammed into G-73 Enforcer. 19560_ K-01 Serf collects debris. 19560_ Slammed into G-73 Enforcer. 19561_ P-80 Master resets P-80 Master, system corruption cleaned. 19561_ Slammed into G-73 Enforcer. 19562_ Acquired 82 matter. 19562_ Slammed into K-01 Serf. [Achievement: 20k Club] Map ----- +----------------------------------------------------+ | ?????????????????????????????????????????????????? | | ?????????????????????????????????????????????????? | | ?????????????????????????????????????????????????? | | ?????????????????????????????????????????????????? | | ?????????????????????????????????????????????????? | | ?????????????????????????????????????????????????? | | ?????????????????????????????????????????????????? | | ???????????????????##????????????????????????????? | | ??????####+#############?????????????????????????? | | ?? ##????????????????????????? | | ?? ##???????#####????????????? | | ???????????########## #??????? ???????????? | | ????????????# # #????# ?????????? | | ????????????# # #????# ?????????? | | ????????????# " #!=#????# ""######### | | ????????????# """ #*%#????# ""# | | ????????????# G +=!#????# = ""# | | ????????????# """ # #?????== Y"# | | ????????????# " # #??????[ ""# | | ????????????# # #??????? ""# | | ????????????# # %##?????? "?# | | ????????????######### ##??????? ??# | | ???????????????????## ###??????? ????# | | ???????????????????# %##########/#############+# | | ??################## ks%gsg p h | | + w s@ gg s m whhph g | | ??######## ######### ##########+#######"#####/# | | ?????????# #???????######??????? ????# | | ?????????# #?????????????????? ??# | | ?????????# #????????????????# """"" # =% | | ########## #######??????????# ""Y"" # [ | | #??????????# # | | ####### ##### #??????????# # | | ??????# #????? #??????????# # | | ??????# #?????? #??????????# # | | ??????# #????????#??????????# ######### | | ??????# #???????????????????# #???????? | | #######+#####???????????????# #???????? | | #???????????????# #???????? | | #????????????????#############???????? | | #????????????????????????????????????? | | #????????????????????????????????????? | | "" #????????????????????????????????????? | | "" / ???????????????????????????????????? | | """""" # ?????????????????????????????????? | | """""" # ?????????????????????????????? | | "" # #????????????????????????????? | | "" !# #????????????????????????????? | | ] # #????????????????????????????? | | # #????????????????????????????? | +----------------------------------------------------+ Best States ------------- Heat Dissipation 90 Energy Generation 41 Energy Capacity 280 Matter Stores 300 Matter Capacity 300 Sight Range 22 Terrain Scan Density 10 Base Temperature (-) 200 Armor Coverage 600 Propulsion Shielding 66 Utility Shielding 66 Weapon Shielding 66 Weapon Cycling 25 Phase Shifting 15 Evasion (%) 75 Targeting Accuracy 18 Melee Accuracy 5 Target Analysis 8 Armor Integrity Analysis 30 Recoil Reduction 6 Kinecelleration 40 Item Schematics ----------------- Imp. Propulsion Shielding | -8/Materials | Scanalyzed Hvy. Assault Rifle | -8/Materials | Scanalyzed Aerolev Unit | -8/Materials | Scanalyzed Grenade Launcher | -8/Materials | Scanalyzed Med. Storage Unit | -8/Materials | Scanalyzed Imp. Weapon Shielding | -8/Materials | Scanalyzed Gauss Rifle | -8/Storage | Hacked Recoil Stabilizer | -8/Storage | Hacked Imp. Reaction Control System | -6/Factory | Extracted Hvy. Flak Cannon | -6/Factory | Extracted Mic. Nuclear Core | -6/Factory | Extracted System Shield | -6/Factory | Extracted Cmb. Airjet | -6/Factory | Extracted Coil Gun | -6/Factory | Hacked Antigrav System | -3/Research | Scanalyzed Centrium Light Armor Plating | -3/Research | Scanalyzed Mic. Antimatter Reactor | -3/Research | Scanalyzed Robot Schematics ------------------ None Fabricated ------------ Imp. Weapon Shielding | x2 | -6/Factory Alien Tech Used ----------------- None Achievements -------------- 20k Club A Powerful Ally? Brute Force Charge!!! Collateral Damage Decoder Ring Dodgeball, But With Guns Explorer Fist Fight Gunslinger Hunted Rockin' Loadout The More The Merrier We Are Legion Challenges ------------ None Game ------ Seed ControlWardroneModule Manual? 0 Play Time 06:01:49 Cumulative 29.6 hours Start 2024.04.07 @ 13:11:01 End 2024.04.07 @ 21:41:04 Sessions 1 Manual Loads 0 Difficulty Rogue Special Mode None Game No. 23 Rogue 23 Adventurer 0 Explorer 0 Win Type - Total 1 Types 1/0/0/0/0/0/0/0/0 Lore% 24 Gallery% 34 Achievement% 32 Wizard Run 0 Options --------- Layout 0 ASCII 0 Keyboard 0 Movement Mouse Keybinds 0 Fullscreen 2 Font 20/SmallcapsGlow Map View 140x60 Zoom Use 0% Tactical HUD 1 Map Filters NONE Filters NONE Steam 1 RUN: d609ac1a-79f8-41e6-bdec-0aa9d50a4e95